{"text_format":"1","workbook":"xlsx","n_sheets":3,"sheets":["selecteer de teksten","geselecteerde teksten","omzettingstabel"],"not_rendered":{"charts":0,"images":2,"macros":1,"external_links":0,"defined_names":6,"comments":0,"pivot_tables":0},"unopened":[],"bounds":{"document_bytes":16777216,"sheet_cells":100000,"rows_first":2000,"rows_last":500,"rows_between":2000,"halvings":0,"cell_chars":16384,"cell_head_chars":4096},"cells_cut":0,"cells_raw":0,"read":"whole","date_system":"1900"}

{"sheet":"selecteer de teksten","index":0,"n_rows":135,"n_cols":21,"rows_kept":135,"cut":false,"hidden":false,"merged":[[2,14,2,15],[8,14,8,15]]}
[null,"Engels vwo"]
[]
[null,null,"jaar","tekst","omschrijving","indicatie moeilijkheidsgraad","P","L","N",null,"ü",null,null,null,"grenswaarden",null,null,"P","L","N","bijdrage"]
[null,null,2011,1,"Advertisement",{"$f":"IF(G4>P$7,\"makkelijke tekst\",IF(G4<P$6,\"moeilijke tekst\",\"tekst van gemiddelde moeilijkheid\"))","v":"makkelijke tekst"},81.8888888888889,1,-0.47000000000000064,null,null,null,null,null,"gemiddelde",{"$f":"AVERAGE(G4:G136)","v":68.204402356902335},null,{"$f":"IF($K4=\"ü\",$G4,\"\")","v":""},{"$f":"IF($K4=\"ü\",$H4,\"\")","v":""},{"$f":"IF($K4=\"ü\",$I4,\"\")","v":""},{"$f":"IF($K4=\"ü\",$G4*$H4,\"\")","v":""}]
[null,null,2011,2,"Himalayan balsam","makkelijke tekst",100.8888888888889,3,-2.1800000000000015,null,null,null,null,null,"standaarddeviatie",{"$f":"STDEVA(G4:G136)","v":13.655803800117326},null,"","","",""]
[null,null,2011,3,"Het eerste hoofdstuk","makkelijke tekst",85.8888888888889,4,-0.83000000000000096,null,null,null,null,null,"M-S",{"$f":"P4-P5","v":54.548598556785009},null,"","","",""]
[null,null,2011,4,"make it professional","tekst van gemiddelde moeilijkheid",77.8888888888889,5,-0.11000000000000121,null,null,null,null,null,"M+S",{"$f":"P4+P5","v":81.860206157019661},null,"","","",""]
[null,null,2011,5,"Conficius makes a come back","tekst van gemiddelde moeilijkheid",68.8888888888889,10,0.69999999999999929,null,null,null,null,null,null,null,null,"","","",""]
[null,null,2011,6,"Bad science","tekst van gemiddelde moeilijkheid",77.8888888888889,9,-0.11000000000000121,null,null,null,null,null,"gewogen P en N",null,null,"","","",""]
[null,null,2011,7,"Happiness","tekst van gemiddelde moeilijkheid",72.8888888888889,10,0.33999999999999897,null,null,null,null,null,"totale bijdrage",{"$f":"SUM(U4:U136)","v":0},null,"","","",""]
[null,null,2011,8,"When Harry met sexism","moeilijke tekst",52.8888888888889,7,2.1399999999999988,null,null,null,null,null,"gem sc",{"$f":"P10/100","v":0},null,"","","",""]
[null,null,2011,9,"We get the Stonehenge we deserve","tekst van gemiddelde moeilijkheid",65.8888888888889,3,0.96999999999999886,null,null,null,null,null,"totale lengte",{"$f":"SUM(S4:S136)","v":0},null,"","","",""]
[null,null,2011,10,"Cornell university","moeilijke tekst",37.8888888888889,1,3.4899999999999993,null,null,null,null,null,"9*P",{"$f":"IF(P12=0,0,9*P11/P12)","v":0},null,"","","",""]
[null,null,2012,1,"Clothes with nanotube ink","makkelijke tekst",87.666666666666671,1,-0.98999999999999932,null,null,null,null,null,"n-term",{"$f":"IF(P12=0,1,6.9-P13)","v":1},null,"","","",""]
[null,null,2012,2,"Africa Invest Capital-Protected Plan","makkelijke tekst",85.666666666666671,2,-0.80999999999999961,null,null,null,null,null,"afgeronde N",{"$f":"ROUND(P14,1)","v":1},null,"","","",""]
[null,null,2012,3,"The following text…","tekst van gemiddelde moeilijkheid",63.666666666666671,3,1.17,null,null,null,null,null,null,null,null,"","","",""]
[null,null,2012,4,"SLF",{"$f":"IF(G17>P$7,\"makkelijke tekst\",IF(G17<P$6,\"moeilijke tekst\",\"tekst van gemiddelde moeilijkheid\"))","v":"tekst van gemiddelde moeilijkheid"},74.666666666666671,1,0.1800000000000006,null,null,null,null,null,null,null,null,"","","",""]
[null,null,2012,5,"Nanny doesn’t know best","tekst van gemiddelde moeilijkheid",67.666666666666671,4,0.8100000000000005,null,null,null,null,null,null,null,null,"","","",""]
[null,null,2012,6,"The many paths to peace","tekst van gemiddelde moeilijkheid",68.666666666666671,10,0.72000000000000064,null,null,null,null,null,null,null,null,"","","",""]
[null,null,2012,7,"Reading on the web is not really reading","tekst van gemiddelde moeilijkheid",75.666666666666671,11,9.0000000000000746E-2,null,null,null,null,null,null,null,null,"","","",""]
[null,null,2012,8,"Black and white – and red all over","tekst van gemiddelde moeilijkheid",66.666666666666671,8,0.90000000000000036,null,null,null,null,null,null,null,null,"","","",""]
[null,null,2012,9,"Does a degree really set you up for life?","tekst van gemiddelde moeilijkheid",54.666666666666671,7,1.9799999999999995,null,null,null,null,null,null,null,null,"","","",""]
[null,null,2013,1,"Curse of giftedness","moeilijke tekst",51,1,2.3100000000000005,null,null,null,null,null,null,null,null,"","","",""]
[null,null,2013,2,"Email from America","makkelijke tekst",96,1,-1.7400000000000002,null,null,null,null,null,null,null,null,"","","",""]
[null,null,2013,3,"Upsides of being down","tekst van gemiddelde moeilijkheid",61.94,8,1.3254000000000001,null,null,null,null,null,null,null,null,"","","",""]
[null,null,2013,4,"Carbon capture","makkelijke tekst",82,1,-0.47999999999999954,null,null,null,null,null,null,null,null,"","","",""]
[null,null,2013,5,"The 21st-century land grab","tekst van gemiddelde moeilijkheid",68.27,10,0.75570000000000093,null,null,null,null,null,null,null,null,"","","",""]
[null,null,2013,6,"Ice-cream? Watch out for sharks","tekst van gemiddelde moeilijkheid",61.44,9,1.3704000000000001,null,null,null,null,null,null,null,null,"","","",""]
[null,null,2013,7,"iHuman","tekst van gemiddelde moeilijkheid",69.34,2,0.65939999999999976,null,null,null,null,null,null,null,null,"","","",""]
[null,null,2013,8,"Eyes for art","tekst van gemiddelde moeilijkheid",75.099999999999994,2,0.1410000000000009,null,null,null,null,null,null,null,null,"","","",""]
[null,null,2013,9,"Hustling spires","moeilijke tekst",51.42,8,2.2721999999999998,null,null,null,null,null,null,null,null,"","","",""]
[null,null,2013,10,"From a presentation…","makkelijke tekst",90,1,-1.1999999999999993,null,null,null,null,null,null,null,null,"","","",""]
[null,null,2013,11,"A no-brainer","tekst van gemiddelde moeilijkheid",70,1,0.60000000000000053,null,null,null,null,null,null,null,null,"","","",""]
[null,null,2014,1,"Parents and peers","tekst van gemiddelde moeilijkheid",63.111111111111114,1,1.2200000000000006,null,null,null,null,null,null,null,null,"","","",""]
[null,null,2014,2,"Don’t shoot the messenger","tekst van gemiddelde moeilijkheid",79.001111111111115,6,-0.21009999999999973,null,null,null,null,null,null,null,null,"","","",""]
[null,null,2014,3,"Tsunami tip-off","makkelijke tekst",82.111111111111114,2,-0.48999999999999932,null,null,null,null,null,null,null,null,"","","",""]
[null,null,2014,4,"Gorillas","makkelijke tekst",83.111111111111114,2,-0.58000000000000007,null,null,null,null,null,null,null,null,"","","",""]
[null,null,2014,5,"The click and the dead","tekst van gemiddelde moeilijkheid",77.961111111111109,9,-0.11649999999999938,null,null,null,null,null,null,null,null,"","","",""]
[null,null,2014,6,"My brain made me do it","tekst van gemiddelde moeilijkheid",72.291111111111121,5,0.39379999999999882,null,null,null,null,null,null,null,null,"","","",""]
[null,null,2014,7,"Break free of this world wide delusion","tekst van gemiddelde moeilijkheid",70.711111111111109,9,0.53600000000000048,null,null,null,null,null,null,null,null,"","","",""]
[null,null,2014,8,"An abattoir for dodgy arguments","tekst van gemiddelde moeilijkheid",67.531111111111116,10,0.8221999999999996,null,null,null,null,null,null,null,null,"","","",""]
[null,null,2014,9,"In sickness and in health","moeilijke tekst",45.591111111111111,3,2.7968000000000002,null,null,null,null,null,null,null,null,"","","",""]
[null,null,2014,10,"Dominoes tumble for school leavers","tekst van gemiddelde moeilijkheid",68.111111111111114,2,0.77000000000000046,null,null,null,null,null,null,null,null,"","","",""]
[null,null,2015,1,"Fair incentive","tekst van gemiddelde moeilijkheid",62.11888888888889,1,1.3092999999999995,null,null,null,null,null,null,null,null,"","","",""]
[null,null,2015,2,"Executive focus","makkelijke tekst",82.638888888888886,5,-0.53749999999999964,null,null,null,null,null,null,null,null,"","","",""]
[null,null,2015,3,"The end of the male gene pool?","tekst van gemiddelde moeilijkheid",73.368888888888904,3,0.2967999999999984,null,null,null,null,null,null,null,null,"","","",""]
[null,null,2015,4,"Letters","tekst van gemiddelde moeilijkheid",67.078888888888883,4,0.86290000000000155,null,null,null,null,null,null,null,null,"","","",""]
[null,null,2015,5,"Getting better all the time","tekst van gemiddelde moeilijkheid",73.558888888888902,7,0.27969999999999917,null,null,null,null,null,null,null,null,"","","",""]
[null,null,2015,6,"A man of his time","tekst van gemiddelde moeilijkheid",76.138888888888886,8,4.750000000000032E-2,null,null,null,null,null,null,null,null,"","","",""]
[null,null,2015,7,"Language needs to change","tekst van gemiddelde moeilijkheid",65.588888888888903,8,0.99699999999999811,null,null,null,null,null,null,null,null,"","","",""]
[null,null,2015,8,"Hamburger junction","tekst van gemiddelde moeilijkheid",71.178888888888906,6,0.49389999999999912,null,null,null,null,null,null,null,null,"","","",""]
[null,null,2015,9,"Colonial borders hamper Africa's trade renaissance","tekst van gemiddelde moeilijkheid",59.36888888888889,3,1.5568,null,null,null,null,null,null,null,null,"","","",""]
[null,null,2015,10,"Not so black and white","tekst van gemiddelde moeilijkheid",63.248888888888892,1,1.2076000000000002,null,null,null,null,null,null,null,null,"","","",""]
[null,null,2015,11,"Encrypted fabric","moeilijke tekst",50.408888888888896,2,2.3632,null,null,null,null,null,null,null,null,"","","",""]
[null,null,2016,1,"Can an economist dig a hole without another filling it?","tekst van gemiddelde moeilijkheid",58.478888888888896,2,1.6368999999999998,null,null,null,null,null,null,null,null,"","","",""]
[null,null,2016,2,"Kipling a plagiarist?","moeilijke tekst",39.328888888888891,4,3.3603999999999998,null,null,null,null,null,null,null,null,"","","",""]
[null,null,2016,3,"The serious business of fun","tekst van gemiddelde moeilijkheid",69.078888888888883,5,0.68290000000000095,null,null,null,null,null,null,null,null,"","","",""]
[null,null,2016,4,"A healthier urban jungle","tekst van gemiddelde moeilijkheid",58.778888888888893,7,1.6099000000000006,null,null,null,null,null,null,null,null,"","","",""]
[null,null,2016,5,"Book review: ‘The End of Men’","tekst van gemiddelde moeilijkheid",55.408888888888896,9,1.9131999999999998,null,null,null,null,null,null,null,null,"","","",""]
[null,null,2016,6,"‘Prosperity without growth’","tekst van gemiddelde moeilijkheid",63.148888888888898,6,1.2165999999999997,null,null,null,null,null,null,null,null,"","","",""]
[null,null,2016,7,"No Einstein in your crib? Get a refund","tekst van gemiddelde moeilijkheid",68.588888888888903,5,0.72699999999999854,null,null,null,null,null,null,null,null,"","","",""]
[null,null,2016,8,"Currency without borders","tekst van gemiddelde moeilijkheid",71.748888888888899,4,0.44259999999999877,null,null,null,null,null,null,null,null,"","","",""]
[null,null,2016,9,"Turning a digital page","tekst van gemiddelde moeilijkheid",67.628888888888895,1,0.81339999999999968,null,null,null,null,null,null,null,null,"","","",""]
[null,null,2016,10,"Really simmering","tekst van gemiddelde moeilijkheid",65.798888888888882,2,0.9781000000000013,null,null,null,null,null,null,null,null,"","","",""]
[null,null,2017,1,"Balanced argument","moeilijke tekst",31.718888888888891,1,4.0453000000000001,null,null,null,null,null,null,null,null,"","","",""]
[null,null,2017,2,"Spotting musical talent","tekst van gemiddelde moeilijkheid",77.378888888888895,4,-6.4100000000000712E-2,null,null,null,null,null,null,null,null,"","","",""]
[null,null,2017,3,"The race docket","tekst van gemiddelde moeilijkheid",61.728888888888896,5,1.3443999999999994,null,null,null,null,null,null,null,null,"","","",""]
[null,null,2017,4,"Clinical trials on trial","tekst van gemiddelde moeilijkheid",68.868888888888904,6,0.70179999999999865,null,null,null,null,null,null,null,null,{"$f":"IF($K68=\"ü\",$G68,\"\")","v":""},{"$f":"IF($K68=\"ü\",$H68,\"\")","v":""},{"$f":"IF($K68=\"ü\",$I68,\"\")","v":""},{"$f":"IF($K68=\"ü\",$G68*$H68,\"\")","v":""}]
[null,null,2017,5,"Britain’s Brussels Syndrome","tekst van gemiddelde moeilijkheid",61.408888888888896,9,1.3731999999999998,null,null,null,null,null,null,null,null,"","","",""]
[null,null,2017,6,"The nanny state","moeilijke tekst",50.988888888888894,7,2.3109999999999999,null,null,null,null,null,null,null,null,"","","",""]
[null,null,2017,7,"We Need to Talk About Kevin","moeilijke tekst",47.858888888888892,5,2.5926999999999998,null,null,null,null,null,null,null,null,"","","",""]
[null,null,2017,8,"Shaken, stirred and confused","tekst van gemiddelde moeilijkheid",65.268888888888881,4,1.0258000000000012,null,null,null,null,null,null,null,null,"","","",""]
[null,null,2017,9,"On the scent of wine that never goes off","tekst van gemiddelde moeilijkheid",64.828888888888883,3,1.0654000000000012,null,null,null,null,null,null,null,null,"","","",""]
[null,null,2017,10,"Alpha male seeks lower stress level","moeilijke tekst",15.428888888888892,1,5.5114000000000001,null,null,null,null,null,null,null,null,"","","",""]
[null,null,2017,11,"Not just gesture politics?","tekst van gemiddelde moeilijkheid",57.928888888888892,1,1.6863999999999999,null,null,null,null,null,null,null,null,"","","",""]
[null,null,2017,12,"Plymouth Marine Laboratory","tekst van gemiddelde moeilijkheid",60.078888888888891,2,1.4928999999999997,null,null,null,null,null,null,null,null,"","","",""]
[null,null,2018,1,"Factory workers in Asia","makkelijke tekst",92,1,-1.379999999999999,null,null,null,null,null,null,null,null,"","","",""]
[null,null,2018,2,"LED carpet turns the floor into a screen","tekst van gemiddelde moeilijkheid",70.09,3,0.59189999999999987,null,null,null,null,null,null,null,null,"","","",""]
[null,null,2018,3,"Figurative speech","moeilijke tekst",47.54,2,2.6214000000000004,null,null,null,null,null,null,null,null,"","","",""]
[null,null,2018,4,"Commitment, wedded or not","moeilijke tekst",51.3,5,2.2830000000000004,null,null,null,null,null,null,null,null,"","","",""]
[null,null,2018,5,"The death of the beard",{"$f":"IF(G81>P$7,\"makkelijke tekst\",IF(G81<P$6,\"moeilijke tekst\",\"tekst van gemiddelde moeilijkheid\"))","v":"moeilijke tekst"},44.78,6,2.8698000000000006,null,null,null,null,null,null,null,null,"","","",""]
[null,null,2018,6,"The driverless road ahead","tekst van gemiddelde moeilijkheid",73.180000000000007,7,0.31379999999999875,null,null,null,null,null,null,null,null,"","","",""]
[null,null,2018,7,"Womenomics","tekst van gemiddelde moeilijkheid",67.98,9,0.78179999999999961,null,null,null,null,null,null,null,null,"","","",""]
[null,null,2018,8,"A perfect opportunity","tekst van gemiddelde moeilijkheid",58.94,6,1.5953999999999997,null,null,null,null,null,null,null,null,"","","",""]
[null,null,2018,9,"Return to the Field","tekst van gemiddelde moeilijkheid",61.09,6,1.4018999999999995,null,null,null,null,null,null,null,null,"","","",""]
[null,null,2018,10,"Furloughed? Here’s an idea.","tekst van gemiddelde moeilijkheid",68.87,2,0.70169999999999977,null,null,null,null,null,null,null,null,"","","",""]
[null,null,2018,11,"Biofuel binge","tekst van gemiddelde moeilijkheid",62,1,1.3200000000000003,null,null,null,null,null,null,null,null,"","","",""]
[null,null,2019,1,"Less waste ","makkelijke tekst",82.96,2,-0.56639999999999979,null,null,null,null,null,null,null,null,"","","",""]
[null,null,2019,2,"Delicate delicacies","makkelijke tekst",89.83,2,-1.1846999999999994,null,null,null,null,null,null,null,null,"","","",""]
[null,null,2019,3,"Brain gain ","makkelijke tekst",87.43,2,-0.968700000000001,null,null,null,null,null,null,null,null,"","","",""]
[null,null,2019,4,"Get a grip","tekst van gemiddelde moeilijkheid",80.319999999999993,4,-0.32879999999999843,null,null,null,null,null,null,null,null,"","","",""]
[null,null,2019,5,"Hard work is in her DNA","tekst van gemiddelde moeilijkheid",65.069999999999993,7,1.0437000000000012,null,null,null,null,null,null,null,null,"","","",""]
[null,null,2019,6,"Poor Shakespeare must be turning in his grave","tekst van gemiddelde moeilijkheid",60.97,9,1.4127000000000001,null,null,null,null,null,null,null,null,"","","",""]
[null,null,2019,7,"An attempt to make football more beautiful","tekst van gemiddelde moeilijkheid",65.569999999999993,7,0.99870000000000125,null,null,null,null,null,null,null,null,"","","",""]
[null,null,2019,8,"Careless in Red","tekst van gemiddelde moeilijkheid",68.39,7,0.74490000000000034,null,null,null,null,null,null,null,null,"","","",""]
[null,null,2019,9,"Future of our past?","tekst van gemiddelde moeilijkheid",54.67,2,1.9797000000000002,null,null,null,null,null,null,null,null,"","","",""]
[null,null,2019,10,"Alarm bells are ringing","makkelijke tekst",91,1,-1.2899999999999991,null,null,null,null,null,null,null,null,"","","",""]
[null,null,2019,11,"CT scans ","tekst van gemiddelde moeilijkheid",80,1,-0.29999999999999982,null,null,null,null,null,null,null,null,"","","",""]
[null,null,2019,12,"The BBC should not just peddle fashionable views ",{"$f":"IF(G99>P$7,\"makkelijke tekst\",IF(G99<P$6,\"moeilijke tekst\",\"tekst van gemiddelde moeilijkheid\"))","v":"tekst van gemiddelde moeilijkheid"},57,1,1.7700000000000005,null,null,null,null,null,null,null,null,"","","",""]
[null,null,2021,1,"Wolf Hall","makkelijke tekst",90,1,-1.1999999999999993,null,null,null,null,null,null,null,null,"","","",""]
[null,null,2021,2,"The NHS","tekst van gemiddelde moeilijkheid",79,2,-0.20999999999999996,null,null,null,null,null,null,null,null,"","","",""]
[null,null,2021,3,"All that glisters","tekst van gemiddelde moeilijkheid",78.03,3,-0.12269999999999914,null,null,null,null,null,null,null,null,"","","",""]
[null,null,2021,4,"Gentrification","tekst van gemiddelde moeilijkheid",74.52,9,0.19320000000000093,null,null,null,null,null,null,null,null,"","","",""]
[null,null,2021,5,"If you want to run the world, …","tekst van gemiddelde moeilijkheid",72.23,7,0.39930000000000021,null,null,null,null,null,null,null,null,"","","",""]
[null,null,2021,6,"The allure of the British seaside","tekst van gemiddelde moeilijkheid",71.849999999999994,6,0.43350000000000044,null,null,null,null,null,null,null,null,"","","",""]
[null,null,2021,7,"Rebooting the real","tekst van gemiddelde moeilijkheid",73.7,5,0.26699999999999946,null,null,null,null,null,null,null,null,"","","",""]
[null,null,2021,8,"Hot Milk","tekst van gemiddelde moeilijkheid",77.400000000000006,5,-6.5999999999999837E-2,null,null,null,null,null,null,null,null,"","","",""]
[null,null,2021,9,"Can you be friends with your coffee maker?","tekst van gemiddelde moeilijkheid",68.63,3,0.72330000000000094,null,null,null,null,null,null,null,null,"","","",""]
[null,null,2021,10,"Mole hunting","tekst van gemiddelde moeilijkheid",79,1,-0.20999999999999996,null,null,null,null,null,null,null,null,"","","",""]
[null,null,2021,11,"A tizz about fizz","tekst van gemiddelde moeilijkheid",66.02,3,0.95820000000000061,null,null,null,null,null,null,null,null,"","","",""]
[null,null,2021,12,"Vacancy: President of the Fondation Ipsen","moeilijke tekst",51.12,3,2.2992000000000008,null,null,null,null,null,null,null,null,"","","",""]
[null,null,2022,1,"Quite a scoop","tekst van gemiddelde moeilijkheid",63.968888888888891,2,1.1428000000000003,null,null,null,null,null,null,null,null,"","","",""]
[null,null,2022,2,"Tekst 2","moeilijke tekst",53.308888888888895,2,2.1021999999999998,null,null,null,null,null,null,null,null,"","","",""]
[null,null,2022,3,"Is Caffè Nero acting pennywise?","tekst van gemiddelde moeilijkheid",76.688888888888897,8,-1.9999999999997797E-3,null,null,null,null,null,null,null,null,"","","",""]
[null,null,2022,4,"What would you pay for an empty room?","tekst van gemiddelde moeilijkheid",74.338888888888903,8,0.20949999999999847,null,null,null,null,null,null,null,null,"","","",""]
[null,null,2022,5,"Small-scale mining","tekst van gemiddelde moeilijkheid",76.588888888888903,6,6.999999999998785E-3,null,null,null,null,null,null,null,null,"","","",""]
[null,null,2022,6,"Sunset saddles","tekst van gemiddelde moeilijkheid",74.278888888888901,7,0.2148999999999992,null,null,null,null,null,null,null,null,"","","",""]
[null,null,2022,7,"A Delicate Truth","tekst van gemiddelde moeilijkheid",69.858888888888885,8,0.61270000000000024,null,null,null,null,null,null,null,null,"","","",""]
[null,null,2022,8,"Surely one who robs a bank is a thief?","tekst van gemiddelde moeilijkheid",69.888888888888886,1,0.61000000000000032,null,null,null,null,null,null,null,null,"","","",""]
[null,null,2022,9,"Healthy diet","tekst van gemiddelde moeilijkheid",79.178888888888906,2,-0.22610000000000063,null,null,null,null,null,null,null,null,"","","",""]
[null,null,2022,10,"Oxbridge ‘rejects’","tekst van gemiddelde moeilijkheid",61.408888888888896,3,1.3731999999999998,null,null,null,null,null,null,null,null,"","","",""]
[null,null,2022,11,"New books we recommend this week","tekst van gemiddelde moeilijkheid",69.888888888888886,2,0.61000000000000032,null,null,null,null,null,null,null,null,"","","",""]
[null,null,2023,1,"Boris should look to the satirists","moeilijke tekst",44,1,2.9400000000000004,null,null,null,null,null,null,null,null,"","","",""]
[null,null,2023,2,"This art is bananas","tekst van gemiddelde moeilijkheid",61,2,1.4100000000000001,null,null,null,null,null,null,null,null,"","","",""]
[null,null,2023,3,"THE ETHICIST","tekst van gemiddelde moeilijkheid",58,2,1.6800000000000006,null,null,null,null,null,null,null,null,"","","",""]
[null,null,2023,4,"Style Guide","moeilijke tekst",33,1,3.93,null,null,null,null,null,null,null,null,"","","",""]
[null,null,2023,5,"Does the Age of Your Doctor Matter?","makkelijke tekst",85,3,-0.75,null,null,null,null,null,null,null,null,"","","",""]
[null,null,2023,6,"Weight loss celebs","tekst van gemiddelde moeilijkheid",76,6,6.0000000000000497E-2,null,null,null,null,null,null,null,null,"","","",""]
[null,null,2023,7,"Teaching 'grit' is bad for children, and bad for democracy","tekst van gemiddelde moeilijkheid",81,8,-0.38999999999999968,null,null,null,null,null,null,null,null,"","","",""]
[null,null,2023,8,"The hipster effect","makkelijke tekst",85,6,-0.75,null,null,null,null,null,null,null,null,"","","",""]
[null,null,2023,9,"The future of diversity","tekst van gemiddelde moeilijkheid",65,8,1.0500000000000007,null,null,null,null,null,null,null,null,"","","",""]
[null,null,2023,10,"Tekst 10","tekst van gemiddelde moeilijkheid",77,5,-2.9999999999999361E-2,null,null,null,null,null,null,null,null,{"$f":"IF($K132=\"ü\",$G132,\"\")","v":""},{"$f":"IF($K132=\"ü\",$H132,\"\")","v":""},{"$f":"IF($K132=\"ü\",$I132,\"\")","v":""},{"$f":"IF($K132=\"ü\",$G132*$H132,\"\")","v":""}]
[null,null,2023,11,"Searching for answers","makkelijke tekst",86,1,-0.83999999999999986,null,null,null,null,null,null,null,null,{"$f":"IF($K133=\"ü\",$G133,\"\")","v":""},{"$f":"IF($K133=\"ü\",$H133,\"\")","v":""},{"$f":"IF($K133=\"ü\",$I133,\"\")","v":""},{"$f":"IF($K133=\"ü\",$G133*$H133,\"\")","v":""}]
[null,null,2023,12,"Tekst 12","moeilijke tekst",53,1,2.1300000000000008,null,null,null,null,null,null,null,null,{"$f":"IF($K134=\"ü\",$G134,\"\")","v":""},{"$f":"IF($K134=\"ü\",$H134,\"\")","v":""},{"$f":"IF($K134=\"ü\",$I134,\"\")","v":""},{"$f":"IF($K134=\"ü\",$G134*$H134,\"\")","v":""}]
[null,null,2023,13,"Education in Australia a race to the Finnish","makkelijke tekst",87,1,-0.92999999999999972,null,null,null,null,null,null,null,null,{"$f":"IF($K135=\"ü\",$G135,\"\")","v":""},{"$f":"IF($K135=\"ü\",$H135,\"\")","v":""},{"$f":"IF($K135=\"ü\",$I135,\"\")","v":""},{"$f":"IF($K135=\"ü\",$G135*$H135,\"\")","v":""}]

{"sheet":"geselecteerde teksten","index":1,"n_rows":10,"n_cols":7,"rows_kept":10,"cut":false,"hidden":false,"merged":[[11,4,11,5],[10,4,10,5],[9,4,9,5]]}
[null,"Engels vwo"]
[]
[null,null,"inhoud van de toets"]
[]
[null,null,"schaallengte",null,{"$f":"'selecteer de teksten'!P12","v":0}]
[null,null,"N-term",null,{"$f":"'selecteer de teksten'!P15","v":1}]
[]
[null,null,"teksten in chronologische volgorde"]
[]
[null,null,"jaar","tekst","omschrijving",null,"punten"]

{"sheet":"omzettingstabel","index":2,"n_rows":47,"n_cols":16,"rows_kept":47,"cut":false,"hidden":false,"merged":[]}
[]
[null,"Vaknaam:",null,null,null,{"$f":"'selecteer de teksten'!B1","v":"Engels vwo"}]
[null,"Schaallengte:",null,null,null,48]
[null,"Normeringsterm:",null,null,null,0.4]
[]
[null,"Score","Cijfer",null,"Score","Cijfer",null,null,null,null,null,null,null,null,null,"####"]
[]
[null,0,"1,0",null,40,"7,9"]
[null,1,"1,1",null,41,"8,1"]
[null,2,"1,2",null,42,"8,3"]
[null,3,"1,3",null,43,"8,5"]
[null,4,"1,4",null,44,"8,7"]
[null,5,"1,5",null,45,"8,9"]
[null,6,"1,6",null,46,"9,3"]
[null,7,"1,7",null,47,"9,6"]
[null,8,"1,9",null,48,"10,0"]
[null,9,"2,1"]
[null,10,"2,3"]
[null,11,"2,5"]
[null,12,"2,7"]
[null,13,"2,8"]
[null,14,"3,0"]
[null,15,"3,2"]
[null,16,"3,4"]
[null,17,"3,6"]
[null,18,"3,8"]
[null,19,"4,0"]
[null,20,"4,2"]
[null,21,"4,3"]
[null,22,"4,5"]
[null,23,"4,7"]
[null,24,"4,9"]
[null,25,"5,1"]
[null,26,"5,3"]
[null,27,"5,5"]
[null,28,"5,7"]
[null,29,"5,8"]
[null,30,"6,0"]
[null,31,"6,2"]
[null,32,"6,4"]
[null,33,"6,6"]
[null,34,"6,8"]
[null,35,"7,0"]
[null,36,"7,2"]
[null,37,"7,3"]
[null,38,"7,5"]
[null,39,"7,7"]